[Event "Titled Tuesday Blitz December 13 Late 2022"]
[White "Arnold, Ken"]
[Black "Antonova, Nadezhda"]
[WhiteFideId "2056836"]
[BlackFideId "14700182"]
[WhiteElo "2369"]
[BlackElo "1814"]
[Result "1/2-1/2"]
[Round "05"]
[TimeControl "180+1"]
[Date "2022.12.14"]
[WhiteClock "0:01:52"]
[BlackClock "0:02:02"]

1. d4 {[%clk 0:03:00]}  Nf6 {[%clk 0:02:59]} 2. c4 {[%clk 0:03:00]}  g6 {[%clk 0:02:59]} 3. Nc3 {[%clk 0:03:00]}  Bg7 {[%clk 0:02:59]} 4. e4 {[%clk 0:03:00]}  d6 {[%clk 0:03:00]} 5. Nf3 {[%clk 0:03:01]}  O-O {[%clk 0:03:00]} 6. Be2 {[%clk 0:03:01]}  e5 {[%clk 0:02:58]} 7. Bg5 {[%clk 0:02:56]}  Nc6 {[%clk 0:02:52]} 8. dxe5 {[%clk 0:02:54]}  dxe5 {[%clk 0:02:47]} 9. Qxd8 {[%clk 0:02:53]}  Nxd8 {[%clk 0:02:43]} 10. O-O-O {[%clk 0:02:45]}  Ne6 {[%clk 0:02:36]} 11. Bxf6 {[%clk 0:02:43]}  Bxf6 {[%clk 0:02:36]} 12. Nd5 {[%clk 0:02:43]}  Bg7 {[%clk 0:02:34]} 13. h4 {[%clk 0:02:39]}  c6 {[%clk 0:02:32]} 14. Ne7+ {[%clk 0:02:37]}  Kh8 {[%clk 0:02:31]} 15. Nxc8 {[%clk 0:02:37]}  Raxc8 {[%clk 0:02:31]} 16. Rd7 {[%clk 0:02:38]}  Nc5 {[%clk 0:02:30]} 17. Rhd1 {[%clk 0:02:19]}  Nxd7 {[%clk 0:02:25]} 18. Rxd7 {[%clk 0:02:18]}  Rb8 {[%clk 0:02:20]} 19. Kc2 {[%clk 0:02:15]}  Rfd8 {[%clk 0:02:16]} 20. Rxf7 {[%clk 0:02:14]}  Rf8 {[%clk 0:02:04]} 21. Rd7 {[%clk 0:02:07]}  Rfd8 {[%clk 0:02:04]} 22. Re7 {[%clk 0:01:58]}  Re8 {[%clk 0:02:03]} 23. Rd7 {[%clk 0:01:52]}  Red8 {[%clk 0:02:03]} 24. Re7 {[%clk 0:01:52]}  Re8 {[%clk 0:02:03]} 25. Rd7 {[%clk 0:01:52]}  Red8 {[%clk 0:02:02]} 1/2-1/2


[Site "https://www.chess.com"]

[Event "Titled Tuesday Blitz December 13 Late 2022"]
[White "Barria Zuniga, Daniel"]
[Black "Reprintsev, Alexander"]
[WhiteFideId "3400816"]
[BlackFideId "14100541"]
[WhiteElo "2414"]
[BlackElo "2230"]
[Result "1/2-1/2"]
[Round "05"]
[TimeControl "180+1"]
[Date "2022.12.14"]
[WhiteClock "0:00:12"]
[BlackClock "0:00:09"]

1. d4 {[%clk 0:03:00]}  d5 {[%clk 0:02:58]} 2. c4 {[%clk 0:03:01]}  e5 {[%clk 0:02:57]} 3. dxe5 {[%clk 0:03:02]}  d4 {[%clk 0:02:57]} 4. Nf3 {[%clk 0:03:02]}  Nc6 {[%clk 0:02:57]} 5. g3 {[%clk 0:03:02]}  Nge7 {[%clk 0:02:57]} 6. Bg2 {[%clk 0:03:02]}  Ng6 {[%clk 0:02:56]} 7. O-O {[%clk 0:03:00]}  Ngxe5 {[%clk 0:02:56]} 8. Nxe5 {[%clk 0:03:00]}  Nxe5 {[%clk 0:02:56]} 9. Na3 {[%clk 0:03:01]}  Bxa3 {[%clk 0:02:38]} 10. Qa4+ {[%clk 0:03:01]}  c6 {[%clk 0:02:35]} 11. Qxa3 {[%clk 0:03:02]}  Nxc4 {[%clk 0:02:32]} 12. Qc5 {[%clk 0:02:55]}  Be6 {[%clk 0:02:28]} 13. Rd1 {[%clk 0:02:52]}  Qb6 {[%clk 0:02:18]} 14. Qg5 {[%clk 0:02:29]}  O-O {[%clk 0:02:12]} 15. b3 {[%clk 0:02:29]}  Nd6 {[%clk 0:01:51]} 16. Ba3 {[%clk 0:02:23]}  Nb5 {[%clk 0:01:25]} 17. Bxf8 {[%clk 0:01:49]}  Rxf8 {[%clk 0:01:26]} 18. Rac1 {[%clk 0:01:49]}  Nc3 {[%clk 0:01:21]} 19. Rd2 {[%clk 0:01:48]}  c5 {[%clk 0:01:15]} 20. e3 {[%clk 0:01:35]}  h6 {[%clk 0:01:04]} 21. Qf4 {[%clk 0:01:33]}  Qa6 {[%clk 0:00:58]} 22. exd4 {[%clk 0:01:25]}  Ne2+ {[%clk 0:00:53]} 23. Rxe2 {[%clk 0:01:24]}  Qxe2 {[%clk 0:00:54]} 24. dxc5 {[%clk 0:01:14]}  Qxa2 {[%clk 0:00:53]} 25. b4 {[%clk 0:01:05]}  Bd5 {[%clk 0:00:39]} 26. Bxd5 {[%clk 0:00:52]}  Qxd5 {[%clk 0:00:38]} 27. b5 {[%clk 0:00:52]}  Rc8 {[%clk 0:00:34]} 28. Qe3 {[%clk 0:00:44]}  b6 {[%clk 0:00:21]} 29. cxb6 {[%clk 0:00:38]}  Rxc1+ {[%clk 0:00:20]} 30. Qxc1 {[%clk 0:00:39]}  axb6 {[%clk 0:00:20]} 31. Qc8+ {[%clk 0:00:38]}  Kh7 {[%clk 0:00:20]} 32. Qc6 {[%clk 0:00:38]}  Qd4 {[%clk 0:00:20]} 33. h4 {[%clk 0:00:34]}  h5 {[%clk 0:00:19]} 34. Kg2 {[%clk 0:00:34]}  g6 {[%clk 0:00:19]} 35. Kf3 {[%clk 0:00:34]}  Kg7 {[%clk 0:00:19]} 36. Ke2 {[%clk 0:00:32]}  Kf8 {[%clk 0:00:16]} 37. Kf3 {[%clk 0:00:24]}  Ke7 {[%clk 0:00:14]} 38. Ke2 {[%clk 0:00:18]}  Kf8 {[%clk 0:00:13]} 39. f3 {[%clk 0:00:16]}  Ke7 {[%clk 0:00:10]} 40. Qc7+ {[%clk 0:00:14]}  Ke6 {[%clk 0:00:10]} 41. Qc6+ {[%clk 0:00:13]}  Qd6 {[%clk 0:00:10]} 42. Qc4+ {[%clk 0:00:13]}  Qd5 {[%clk 0:00:09]} 43. Qc8+ {[%clk 0:00:13]}  Qd7 {[%clk 0:00:09]} 44. Qc4+ {[%clk 0:00:12]}  Qd5 {[%clk 0:00:09]} 45. Qc8+ {[%clk 0:00:12]}  Qd7 {[%clk 0:00:09]} 46. Qc4+ {[%clk 0:00:12]}  Qd5 {[%clk 0:00:09]} 1/2-1/2


[Site "https://www.chess.com"]

[Event "Titled Tuesday Blitz December 13 Late 2022"]
[White "Bogaudinov, Rushan"]
[Black "Al-Tarboush, Ward"]
[WhiteFideId "4129288"]
[BlackFideId "7601450"]
[WhiteElo "2028"]
[BlackElo "2263"]
[Result "0-1"]
[Round "05"]
[TimeControl "180+1"]
[Date "2022.12.14"]
[WhiteClock "0:00:05"]
[BlackClock "0:00:09"]

1. d4 {[%clk 0:02:15]}  Nf6 {[%clk 0:02:58]} 2. e3 {[%clk 0:02:15]}  g6 {[%clk 0:02:57]} 3. Nf3 {[%clk 0:02:16]}  Bg7 {[%clk 0:02:57]} 4. Be2 {[%clk 0:02:17]}  O-O {[%clk 0:02:57]} 5. O-O {[%clk 0:02:18]}  d5 {[%clk 0:02:57]} 6. c4 {[%clk 0:02:16]}  c6 {[%clk 0:02:57]} 7. cxd5 {[%clk 0:02:16]}  cxd5 {[%clk 0:02:57]} 8. Nc3 {[%clk 0:02:17]}  Nc6 {[%clk 0:02:56]} 9. a3 {[%clk 0:02:17]}  Bf5 {[%clk 0:02:53]} 10. b4 {[%clk 0:02:16]}  Rc8 {[%clk 0:02:53]} 11. Bb2 {[%clk 0:02:16]}  h5 {[%clk 0:02:47]} 12. Rc1 {[%clk 0:02:15]}  Ne4 {[%clk 0:02:39]} 13. Na4 {[%clk 0:02:12]}  Qd6 {[%clk 0:02:31]} 14. Nc5 {[%clk 0:02:00]}  b6 {[%clk 0:02:27]} 15. Nd3 {[%clk 0:01:48]}  e6 {[%clk 0:02:17]} 16. Qb3 {[%clk 0:01:37]}  Ne7 {[%clk 0:02:14]} 17. h3 {[%clk 0:01:33]}  Rxc1 {[%clk 0:02:09]} 18. Rxc1 {[%clk 0:01:33]}  Rc8 {[%clk 0:02:09]} 19. Rxc8+ {[%clk 0:01:31]}  Nxc8 {[%clk 0:02:10]} 20. Nfe5 {[%clk 0:01:24]}  f6 {[%clk 0:02:01]} 21. g4 {[%clk 0:01:20]}  hxg4 {[%clk 0:01:39]} 22. hxg4 {[%clk 0:01:18]}  fxe5 {[%clk 0:01:37]} 23. Nxe5 {[%clk 0:01:02]}  Bxe5 {[%clk 0:01:31]} 24. dxe5 {[%clk 0:01:02]}  Qd8 {[%clk 0:01:27]} 25. Qc2 {[%clk 0:00:22]}  Kf7 {[%clk 0:00:46]} 26. gxf5 {[%clk 0:00:21]}  Qg5+ {[%clk 0:00:37]} 27. Kf1 {[%clk 0:00:21]}  Qxf5 {[%clk 0:00:35]} 28. Bd3 {[%clk 0:00:18]}  Qh3+ {[%clk 0:00:34]} 29. Ke1 {[%clk 0:00:16]}  Qh1+ {[%clk 0:00:30]} 30. Ke2 {[%clk 0:00:16]}  Ne7 {[%clk 0:00:27]} 31. Bxe4 {[%clk 0:00:15]}  dxe4 {[%clk 0:00:27]} 32. Qc7 {[%clk 0:00:14]}  Qf3+ {[%clk 0:00:26]} 33. Ke1 {[%clk 0:00:14]}  Qh1+ {[%clk 0:00:25]} 34. Ke2 {[%clk 0:00:14]}  Qb1 {[%clk 0:00:22]} 35. Qc1 {[%clk 0:00:09]}  Qd3+ {[%clk 0:00:21]} 36. Ke1 {[%clk 0:00:08]}  g5 {[%clk 0:00:21]} 37. Bd4 {[%clk 0:00:08]}  g4 {[%clk 0:00:21]} 38. Qd1 {[%clk 0:00:07]}  Qxd1+ {[%clk 0:00:17]} 39. Kxd1 {[%clk 0:00:07]}  Kg6 {[%clk 0:00:15]} 40. a4 {[%clk 0:00:07]}  Kf5 {[%clk 0:00:09]} 41. b5 {[%clk 0:00:06]}  Nd5 {[%clk 0:00:04]} 42. a5 {[%clk 0:00:05]}  g3 {[%clk 0:00:03]} 43. fxg3 {[%clk 0:00:05]}  Kg4 {[%clk 0:00:03]} 44. axb6 {[%clk 0:00:05]}  axb6 {[%clk 0:00:03]} 45. Ke2 {[%clk 0:00:06]}  Kxg3 {[%clk 0:00:04]} 46. Bb2 {[%clk 0:00:05]}  Kg4 {[%clk 0:00:04]} 47. Bd4 {[%clk 0:00:05]}  Kf5 {[%clk 0:00:04]} 48. Bb2 {[%clk 0:00:05]}  Ne7 {[%clk 0:00:04]} 49. Bd4 {[%clk 0:00:05]}  Nc8 {[%clk 0:00:04]} 50. Kf2 {[%clk 0:00:05]}  Kg4 {[%clk 0:00:05]} 51. Kg2 {[%clk 0:00:05]}  Kf5 {[%clk 0:00:05]} 52. Kg3 {[%clk 0:00:05]}  Ne7 {[%clk 0:00:05]} 53. Bxb6 {[%clk 0:00:05]}  Kxe5 {[%clk 0:00:05]} 54. Bc5 {[%clk 0:00:05]}  Nf5+ {[%clk 0:00:05]} 55. Kf2 {[%clk 0:00:05]}  Kd5 {[%clk 0:00:06]} 56. Ba7 {[%clk 0:00:04]}  Nd6 {[%clk 0:00:06]} 57. b6 {[%clk 0:00:04]}  Kc6 {[%clk 0:00:06]} 58. Bb8 {[%clk 0:00:05]}  Nc4 {[%clk 0:00:07]} 59. Bc7 {[%clk 0:00:05]}  Nxb6 {[%clk 0:00:05]} 60. Bxb6 {[%clk 0:00:04]}  Kxb6 {[%clk 0:00:06]} 61. Kg3 {[%clk 0:00:05]}  Kc5 {[%clk 0:00:06]} 62. Kf2 {[%clk 0:00:04]}  Kc4 {[%clk 0:00:06]} 63. Ke2 {[%clk 0:00:03]}  Kc3 {[%clk 0:00:07]} 64. Ke1 {[%clk 0:00:03]}  Kd3 {[%clk 0:00:07]} 65. Kf2 {[%clk 0:00:04]}  Kd2 {[%clk 0:00:07]} 66. Kf1 {[%clk 0:00:03]}  Kxe3 {[%clk 0:00:07]} 67. Ke1 {[%clk 0:00:04]}  Kd3 {[%clk 0:00:08]} 68. Kd1 {[%clk 0:00:05]}  e3 {[%clk 0:00:08]} 69. Ke1 {[%clk 0:00:05]}  e2 {[%clk 0:00:09]} 0-1


[Site "https://www.chess.com"]

[Event "Titled Tuesday Blitz December 13 Late 2022"]
[White "Burke, Paul"]
[Black "Espinosa, Pedro"]
[WhiteFideId "2605767"]
[BlackFideId "30921066"]
[WhiteElo "1928"]
[BlackElo "2016"]
[Result "0-1"]
[Round "05"]
[TimeControl "180+1"]
[Date "2022.12.14"]
[WhiteClock "0:00:34"]
[BlackClock "0:01:39"]

1. e4 {[%clk 0:02:20]}  c5 {[%clk 0:02:58]} 2. d4 {[%clk 0:02:20]}  cxd4 {[%clk 0:02:57]} 3. c3 {[%clk 0:02:18]}  dxc3 {[%clk 0:02:58]} 4. Nxc3 {[%clk 0:02:18]}  e6 {[%clk 0:02:59]} 5. Nf3 {[%clk 0:02:18]}  Nc6 {[%clk 0:03:00]} 6. Bf4 {[%clk 0:02:18]}  Bb4 {[%clk 0:02:59]} 7. Bd3 {[%clk 0:02:17]}  Nge7 {[%clk 0:02:59]} 8. e5 {[%clk 0:02:18]}  Nd5 {[%clk 0:02:53]} 9. Bd2 {[%clk 0:02:16]}  Nxc3 {[%clk 0:02:53]} 10. bxc3 {[%clk 0:02:16]}  Bc5 {[%clk 0:02:52]} 11. Qe2 {[%clk 0:02:14]}  h6 {[%clk 0:02:47]} 12. Rd1 {[%clk 0:02:11]}  b6 {[%clk 0:02:44]} 13. O-O {[%clk 0:02:06]}  Bb7 {[%clk 0:02:44]} 14. Bb1 {[%clk 0:01:52]}  Qc7 {[%clk 0:02:35]} 15. Rfe1 {[%clk 0:01:51]}  O-O-O {[%clk 0:02:34]} 16. a4 {[%clk 0:01:38]}  d6 {[%clk 0:02:27]} 17. exd6 {[%clk 0:01:23]}  Bxd6 {[%clk 0:02:28]} 18. c4 {[%clk 0:01:16]}  Bc5 {[%clk 0:02:25]} 19. a5 {[%clk 0:01:09]}  Nxa5 {[%clk 0:02:16]} 20. Bxa5 {[%clk 0:01:08]}  bxa5 {[%clk 0:02:16]} 21. Be4 {[%clk 0:00:59]}  Rxd1 {[%clk 0:02:01]} 22. Rxd1 {[%clk 0:00:58]}  Rd8 {[%clk 0:01:59]} 23. Rb1 {[%clk 0:00:54]}  Bb6 {[%clk 0:01:50]} 24. Bxb7+ {[%clk 0:00:51]}  Kxb7 {[%clk 0:01:47]} 25. Qe4+ {[%clk 0:00:43]}  Qc6 {[%clk 0:01:44]} 26. Qe3 {[%clk 0:00:34]}  Rd1+ {[%clk 0:01:39]} 0-1


[Site "https://www.chess.com"]

[Event "Titled Tuesday Blitz December 13 Late 2022"]
[White "Chigaev, Maksim"]
[Black "Sadhwani, Raunak"]
[WhiteFideId "4108116"]
[BlackFideId "35093487"]
[WhiteElo "2542"]
[BlackElo "2657"]
[Result "1-0"]
[Round "05"]
[TimeControl "180+1"]
[Date "2022.12.13"]
[WhiteClock "0:01:25"]
[BlackClock "0:01:53"]

1. Nf3 {[%clk 0:03:00]}  d5 {[%clk 0:02:58]} 2. d4 {[%clk 0:03:00]}  Nf6 {[%clk 0:02:54]} 3. c4 {[%clk 0:03:01]}  e6 {[%clk 0:02:55]} 4. g3 {[%clk 0:03:01]}  Bb4+ {[%clk 0:02:52]} 5. Nbd2 {[%clk 0:03:01]}  O-O {[%clk 0:02:49]} 6. Bg2 {[%clk 0:03:00]}  dxc4 {[%clk 0:02:43]} 7. Qc2 {[%clk 0:03:00]}  b5 {[%clk 0:02:21]} 8. a4 {[%clk 0:02:37]}  Bb7 {[%clk 0:02:14]} 9. axb5 {[%clk 0:02:35]}  a6 {[%clk 0:02:12]} 10. bxa6 {[%clk 0:02:32]}  Rxa6 {[%clk 0:02:02]} 11. Rxa6 {[%clk 0:02:31]}  Bxa6 {[%clk 0:02:03]} 12. O-O {[%clk 0:02:27]}  Nc6 {[%clk 0:02:03]} 13. Nxc4 {[%clk 0:02:01]}  Nxd4 {[%clk 0:02:03]} 14. Nxd4 {[%clk 0:02:02]}  Qxd4 {[%clk 0:02:03]} 15. b3 {[%clk 0:02:02]}  Qc3 {[%clk 0:01:54]} 16. Qa2 {[%clk 0:01:42]}  Bb5 {[%clk 0:01:53]} 17. Bd2 {[%clk 0:01:25]} 1-0


[Site "https://www.chess.com"]

[Event "Titled Tuesday Blitz December 13 Late 2022"]
[White "Chlpik, Martin"]
[Black "Ankerst, Mihael"]
[WhiteFideId "14923351"]
[BlackFideId "14602369"]
[WhiteElo "2109"]
[BlackElo "2339"]
[Result "0-1"]
[Round "05"]
[TimeControl "180+1"]
[Date "2022.12.14"]
[WhiteClock "0:00:06"]
[BlackClock "0:01:01"]

1. d4 {[%clk 0:03:00]}  Nf6 {[%clk 0:02:59]} 2. Nc3 {[%clk 0:03:01]}  g6 {[%clk 0:03:00]} 3. Bf4 {[%clk 0:03:00]}  d5 {[%clk 0:03:00]} 4. e3 {[%clk 0:03:00]}  Bg7 {[%clk 0:03:00]} 5. h4 {[%clk 0:03:00]}  O-O {[%clk 0:03:01]} 6. h5 {[%clk 0:03:00]}  c5 {[%clk 0:03:00]} 7. hxg6 {[%clk 0:02:57]}  hxg6 {[%clk 0:03:01]} 8. Nf3 {[%clk 0:02:53]}  Nbd7 {[%clk 0:02:57]} 9. Ne5 {[%clk 0:02:50]}  b6 {[%clk 0:02:56]} 10. Nc6 {[%clk 0:02:37]}  Qe8 {[%clk 0:02:55]} 11. Nb5 {[%clk 0:02:37]}  e5 {[%clk 0:02:24]} 12. dxe5 {[%clk 0:02:10]}  Nxe5 {[%clk 0:02:23]} 13. Nxe5 {[%clk 0:02:06]}  Qe7 {[%clk 0:02:22]} 14. Qf3 {[%clk 0:01:38]}  Bf5 {[%clk 0:02:21]} 15. Bd3 {[%clk 0:01:04]}  Ne4 {[%clk 0:02:15]} 16. g4 {[%clk 0:01:00]}  Bxe5 {[%clk 0:02:07]} 17. gxf5 {[%clk 0:01:00]}  Bxb2 {[%clk 0:01:35]} 18. Qh3 {[%clk 0:00:56]}  Rfd8 {[%clk 0:01:25]} 19. Qh7+ {[%clk 0:00:48]}  Kf8 {[%clk 0:01:24]} 20. Nc7 {[%clk 0:00:32]}  Qf6 {[%clk 0:01:19]} 21. Bh6+ {[%clk 0:00:20]}  Ke7 {[%clk 0:01:19]} 22. Rd1 {[%clk 0:00:08]}  Qxf5 {[%clk 0:01:03]} 23. Bxe4 {[%clk 0:00:07]}  Bc3+ {[%clk 0:01:01]} 24. Ke2 {[%clk 0:00:06]}  dxe4 {[%clk 0:01:01]} 0-1


[Site "https://www.chess.com"]

[Event "Titled Tuesday Blitz December 13 Late 2022"]
[White "Clawitter, Craig"]
[Black "Musovic, Armin"]
[WhiteFideId "2023105"]
[BlackFideId "939935"]
[WhiteElo "2207"]
[BlackElo "2288"]
[Result "0-1"]
[Round "05"]
[TimeControl "180+1"]
[Date "2022.12.14"]
[WhiteClock "0:00:01"]
[BlackClock "0:01:47"]

1. e4 {[%clk 0:02:54]}  c6 {[%clk 0:02:59]} 2. Nf3 {[%clk 0:02:51]}  d5 {[%clk 0:03:00]} 3. e5 {[%clk 0:02:51]}  c5 {[%clk 0:03:00]} 4. d4 {[%clk 0:02:51]}  Nc6 {[%clk 0:03:00]} 5. dxc5 {[%clk 0:02:51]}  Bg4 {[%clk 0:03:00]} 6. c3 {[%clk 0:02:50]}  e6 {[%clk 0:02:58]} 7. Bb5 {[%clk 0:02:38]}  Bxf3 {[%clk 0:02:58]} 8. Qxf3 {[%clk 0:02:37]}  Qc7 {[%clk 0:02:59]} 9. O-O {[%clk 0:02:36]}  Bxc5 {[%clk 0:02:55]} 10. b4 {[%clk 0:02:31]}  Bb6 {[%clk 0:02:52]} 11. Qg3 {[%clk 0:02:31]}  Kf8 {[%clk 0:02:52]} 12. Bxc6 {[%clk 0:02:25]}  bxc6 {[%clk 0:02:52]} 13. a4 {[%clk 0:02:25]}  a5 {[%clk 0:02:50]} 14. Ba3 {[%clk 0:02:23]}  Ne7 {[%clk 0:02:50]} 15. bxa5 {[%clk 0:02:20]}  Rxa5 {[%clk 0:02:51]} 16. Bd6 {[%clk 0:02:20]}  Qa7 {[%clk 0:02:47]} 17. c4 {[%clk 0:02:08]}  Kg8 {[%clk 0:02:47]} 18. cxd5 {[%clk 0:01:53]}  Nf5 {[%clk 0:02:38]} 19. Qc3 {[%clk 0:01:45]}  Rxd5 {[%clk 0:02:22]} 20. Qxc6 {[%clk 0:01:42]}  h5 {[%clk 0:02:22]} 21. Nc3 {[%clk 0:01:32]}  Rd2 {[%clk 0:02:21]} 22. Ne4 {[%clk 0:01:15]}  Rb2 {[%clk 0:02:09]} 23. Qe8+ {[%clk 0:00:37]}  Kh7 {[%clk 0:02:07]} 24. Ng5+ {[%clk 0:00:37]}  Kg6 {[%clk 0:02:06]} 25. Qxh8 {[%clk 0:00:33]}  Kxg5 {[%clk 0:02:00]} 26. Qc8 {[%clk 0:00:21]}  Bxf2+ {[%clk 0:01:57]} 27. Kh1 {[%clk 0:00:20]}  h4 {[%clk 0:01:57]} 28. Qd8+ {[%clk 0:00:10]}  Kg6 {[%clk 0:01:55]} 29. a5 {[%clk 0:00:07]}  Qb7 {[%clk 0:01:53]} 30. a6 {[%clk 0:00:06]}  Qe4 {[%clk 0:01:53]} 31. Qc8 {[%clk 0:00:01]}  Bc5 {[%clk 0:01:47]} 32. Qxc5 {[%clk 0:00:01]}  Qxg2# {[%clk 0:01:47]} 0-1


[Site "https://www.chess.com"]

[Event "Titled Tuesday Blitz December 13 Late 2022"]
[White "Cruz, William Ferreira Da"]
[Black "Grapsa, Georgia"]
[WhiteFideId "2118050"]
[BlackFideId "4206436"]
[WhiteElo "2223"]
[BlackElo "1825"]
[Result "1-0"]
[Round "05"]
[TimeControl "180+1"]
[Date "2022.12.14"]
[WhiteClock "0:00:40"]
[BlackClock "0:00:05"]

1. d4 {[%clk 0:03:00]}  d5 {[%clk 0:02:44]} 2. c4 {[%clk 0:03:00]}  e6 {[%clk 0:02:44]} 3. Nc3 {[%clk 0:03:00]}  f5 {[%clk 0:02:44]} 4. cxd5 {[%clk 0:02:59]}  exd5 {[%clk 0:02:43]} 5. Bf4 {[%clk 0:02:59]}  Nf6 {[%clk 0:02:42]} 6. e3 {[%clk 0:02:59]}  c6 {[%clk 0:02:42]} 7. Nf3 {[%clk 0:02:59]}  Bd6 {[%clk 0:02:42]} 8. Bxd6 {[%clk 0:02:57]}  Qxd6 {[%clk 0:02:43]} 9. Bd3 {[%clk 0:02:56]}  O-O {[%clk 0:02:41]} 10. Ne5 {[%clk 0:02:55]}  Ne4 {[%clk 0:02:40]} 11. f3 {[%clk 0:02:54]}  Nxc3 {[%clk 0:02:38]} 12. bxc3 {[%clk 0:02:54]}  Nd7 {[%clk 0:02:38]} 13. f4 {[%clk 0:02:54]}  Nf6 {[%clk 0:02:35]} 14. O-O {[%clk 0:02:53]}  Bd7 {[%clk 0:02:32]} 15. c4 {[%clk 0:02:52]}  g6 {[%clk 0:02:25]} 16. c5 {[%clk 0:02:50]}  Qe7 {[%clk 0:02:23]} 17. Rb1 {[%clk 0:02:48]}  Be6 {[%clk 0:02:11]} 18. a4 {[%clk 0:02:38]}  Rab8 {[%clk 0:02:09]} 19. a5 {[%clk 0:02:38]}  a6 {[%clk 0:02:00]} 20. Rf2 {[%clk 0:02:36]}  Rbe8 {[%clk 0:01:54]} 21. Rfb2 {[%clk 0:02:34]}  Bc8 {[%clk 0:01:55]} 22. Qb3 {[%clk 0:02:20]}  Kg7 {[%clk 0:01:48]} 23. Qb6 {[%clk 0:02:20]}  Nd7 {[%clk 0:01:40]} 24. Qc7 {[%clk 0:02:17]}  Nxe5 {[%clk 0:01:38]} 25. Qxe7+ {[%clk 0:02:15]}  Rxe7 {[%clk 0:01:36]} 26. fxe5 {[%clk 0:02:16]}  f4 {[%clk 0:01:33]} 27. Kf2 {[%clk 0:02:13]}  fxe3+ {[%clk 0:01:31]} 28. Kxe3 {[%clk 0:02:13]}  Ref7 {[%clk 0:01:28]} 29. Be2 {[%clk 0:02:12]}  Rf4 {[%clk 0:01:24]} 30. Bf3 {[%clk 0:02:11]}  g5 {[%clk 0:01:22]} 31. h3 {[%clk 0:02:10]}  Kg6 {[%clk 0:01:21]} 32. Rf2 {[%clk 0:02:04]}  h5 {[%clk 0:01:16]} 33. Rbb2 {[%clk 0:01:58]}  g4 {[%clk 0:00:51]} 34. hxg4 {[%clk 0:01:57]}  hxg4 {[%clk 0:00:51]} 35. Bd1 {[%clk 0:01:36]}  Re4+ {[%clk 0:00:51]} 36. Kd3 {[%clk 0:01:36]}  Bf5 {[%clk 0:00:48]} 37. Kc3 {[%clk 0:01:30]}  Re3+ {[%clk 0:00:48]} 38. Kb4 {[%clk 0:01:28]}  Rf7 {[%clk 0:00:38]} 39. Rbe2 {[%clk 0:01:25]}  Rd3 {[%clk 0:00:35]} 40. Rd2 {[%clk 0:01:26]}  Rxd2 {[%clk 0:00:32]} 41. Rxd2 {[%clk 0:01:25]}  Kg5 {[%clk 0:00:33]} 42. g3 {[%clk 0:01:21]}  Be4 {[%clk 0:00:32]} 43. Kc3 {[%clk 0:01:20]}  Rf1 {[%clk 0:00:30]} 44. Bc2 {[%clk 0:01:16]}  Rf3+ {[%clk 0:00:24]} 45. Kb2 {[%clk 0:01:11]}  Rxg3 {[%clk 0:00:19]} 46. Rf2 {[%clk 0:01:11]}  Rf3 {[%clk 0:00:14]} 47. Re2 {[%clk 0:01:04]}  Rf7 {[%clk 0:00:09]} 48. Bxe4 {[%clk 0:01:02]}  dxe4 {[%clk 0:00:10]} 49. Rxe4 {[%clk 0:01:02]}  g3 {[%clk 0:00:11]} 50. Re1 {[%clk 0:00:59]}  Kg4 {[%clk 0:00:10]} 51. Kc3 {[%clk 0:00:59]}  g2 {[%clk 0:00:10]} 52. d5 {[%clk 0:00:59]}  Kg3 {[%clk 0:00:11]} 53. d6 {[%clk 0:00:56]}  Rf1 {[%clk 0:00:10]} 54. d7 {[%clk 0:00:52]}  Rxe1 {[%clk 0:00:06]} 55. d8=Q {[%clk 0:00:52]}  g1=Q {[%clk 0:00:07]} 56. Qg5+ {[%clk 0:00:50]}  Kf2 {[%clk 0:00:07]} 57. Qf4+ {[%clk 0:00:50]}  Kg2 {[%clk 0:00:05]} 58. Qg4+ {[%clk 0:00:50]}  Kf1 {[%clk 0:00:05]} 59. Qf3+ {[%clk 0:00:46]}  Qf2 {[%clk 0:00:05]} 60. Qh3+ {[%clk 0:00:46]}  Ke2 {[%clk 0:00:05]} 61. Qd3# {[%clk 0:00:40]} 1-0


[Site "https://www.chess.com"]

[Event "Titled Tuesday Blitz December 13 Late 2022"]
[White "D`Arruda, Ricardo D."]
[Black "Young, Ryan"]
[WhiteFideId "100692"]
[BlackFideId "2049945"]
[WhiteElo "2422"]
[BlackElo "2301"]
[Result "0-1"]
[Round "05"]
[TimeControl "180+1"]
[Date "2022.12.14"]
[WhiteClock "0:00:02"]
[BlackClock "0:00:11"]

1. d4 {[%clk 0:02:45]}  Nf6 {[%clk 0:02:59]} 2. Nf3 {[%clk 0:02:45]}  d5 {[%clk 0:02:58]} 3. c4 {[%clk 0:02:43]}  e6 {[%clk 0:02:58]} 4. Nc3 {[%clk 0:02:42]}  Bb4 {[%clk 0:02:59]} 5. Bd2 {[%clk 0:02:41]}  O-O {[%clk 0:02:54]} 6. e3 {[%clk 0:02:41]}  c5 {[%clk 0:02:51]} 7. dxc5 {[%clk 0:02:39]}  Bxc5 {[%clk 0:02:50]} 8. Rc1 {[%clk 0:02:32]}  dxc4 {[%clk 0:02:41]} 9. Bxc4 {[%clk 0:02:31]}  Nc6 {[%clk 0:02:42]} 10. O-O {[%clk 0:02:30]}  b6 {[%clk 0:02:37]} 11. Qe2 {[%clk 0:02:29]}  Bb7 {[%clk 0:02:34]} 12. Rfd1 {[%clk 0:02:27]}  Qe7 {[%clk 0:02:35]} 13. e4 {[%clk 0:02:26]}  e5 {[%clk 0:02:26]} 14. Bg5 {[%clk 0:02:25]}  Nd4 {[%clk 0:02:19]} 15. Nxd4 {[%clk 0:02:25]}  Bxd4 {[%clk 0:02:20]} 16. Nd5 {[%clk 0:02:24]}  Bxd5 {[%clk 0:02:19]} 17. Bxd5 {[%clk 0:02:24]}  Rac8 {[%clk 0:02:16]} 18. Bb3 {[%clk 0:01:51]}  Qd6 {[%clk 0:01:47]} 19. Kh1 {[%clk 0:01:48]}  Nd7 {[%clk 0:01:37]} 20. f3 {[%clk 0:01:40]}  Nc5 {[%clk 0:01:34]} 21. Bd5 {[%clk 0:01:39]}  Ne6 {[%clk 0:01:32]} 22. Bd2 {[%clk 0:01:34]}  Rfd8 {[%clk 0:01:28]} 23. Bc3 {[%clk 0:01:30]}  Bxc3 {[%clk 0:01:27]} 24. bxc3 {[%clk 0:01:26]}  Nf4 {[%clk 0:01:23]} 25. Qe3 {[%clk 0:01:20]}  Qa3 {[%clk 0:01:09]} 26. Bb3 {[%clk 0:01:14]}  Kf8 {[%clk 0:00:54]} 27. g3 {[%clk 0:01:12]}  Ng6 {[%clk 0:00:51]} 28. Qg5 {[%clk 0:00:57]}  Qe7 {[%clk 0:00:47]} 29. Qe3 {[%clk 0:00:49]}  Qc5 {[%clk 0:00:42]} 30. Qe1 {[%clk 0:00:27]}  a5 {[%clk 0:00:33]} 31. h4 {[%clk 0:00:25]}  Ne7 {[%clk 0:00:27]} 32. Kg2 {[%clk 0:00:23]}  Rd6 {[%clk 0:00:23]} 33. Rxd6 {[%clk 0:00:21]}  Qxd6 {[%clk 0:00:24]} 34. Rd1 {[%clk 0:00:19]}  Qc7 {[%clk 0:00:24]} 35. Rd3 {[%clk 0:00:18]}  Rd8 {[%clk 0:00:23]} 36. Qd2 {[%clk 0:00:19]}  Rxd3 {[%clk 0:00:23]} 37. Qxd3 {[%clk 0:00:20]}  g6 {[%clk 0:00:20]} 38. g4 {[%clk 0:00:19]}  Kg7 {[%clk 0:00:20]} 39. g5 {[%clk 0:00:19]}  Nc6 {[%clk 0:00:16]} 40. Qd5 {[%clk 0:00:19]}  Nd8 {[%clk 0:00:13]} 41. Kg3 {[%clk 0:00:18]}  Ne6 {[%clk 0:00:13]} 42. Qd2 {[%clk 0:00:10]}  Nf4 {[%clk 0:00:13]} 43. Bd5 {[%clk 0:00:10]}  Qc5 {[%clk 0:00:13]} 44. Kh2 {[%clk 0:00:09]}  a4 {[%clk 0:00:12]} 45. c4 {[%clk 0:00:06]}  a3 {[%clk 0:00:11]} 46. Qc2 {[%clk 0:00:02]}  Qc8 {[%clk 0:00:11]} 0-1


[Site "https://www.chess.com"]